[Event "Nordic Chess-ch 2019"]
[Site "Sarpsborg"]
[Date "2019.06.22"]
[Round "2.40"]
[White "Eriksen, Oddvar"]
[Black "Stabbetorp, Hans"]
[Result "1/2-1/2"]
[ECO "B01"]
[WhiteElo "1520"]
[BlackElo "1767"]
[Annotator "NA"]
[PlyCount "151"]
[EventDate "2019.06.21"]
[EventType "swiss"]
[EventCountry "NOR"]
[SourceTitle "playchess.com"]
[Source "ChessBase"]
[SourceQuality "1"]
[TimeControl "40/5400+30:1800+30"]

1. e4 {[%emt 0:00:00]} d5 {[%emt 0:00:00]} 2. exd5 {[%emt 0:00:00]} Qxd5 {[%emt 0:00:00]} 3. Nc3 {[%emt 0:00:22]} Qa5 {[%emt 0:00:00]} 4. Nf3 {[%emt 0:00:42]} Nf6 {[%emt 0:00:00]} 5. Bc4 {[%emt 0:00:47]} Bf5 {[%emt 0:00:00]} 6. d4 {[%emt 0:01:51]} e6 {[%emt 0:00:33]} 7. O-O {[%emt 0:00:27]} c6 {[%emt 0:01:36]} 8. Bd3 {[%emt 0:02:31]} Bxd3 {[%emt 0:01:18]} 9. Qxd3 {[%emt 0:00:32]} Bd6 {[%emt 0:00:40]} 10. h3 {[%emt 0:02:41]} Nbd7 {[%emt 0:01:29]} 11. Ng5 {[%emt 0:01:21]} h6 {[%emt 0:01:18]} 12. Nge4 {[%emt 0:01:47]} Nxe4 {[%emt 0:00:00]} 13. Nxe4 {[%emt 0:00:39]} Be7 {[%emt 0:00:36]} 14. Bd2 {[%emt 0:01:53]} Qb6 {[%emt 0:01:43]} 15. Rab1 {[%emt 0:00:17]} Rd8 {[%emt 0:01:21]} 16. c3 {[%emt 0:04:22]} Nf6 {[%emt 0:01:28]} 17. Nxf6+ {[%emt 0:08:53]} Bxf6 {[%emt 0:00:07]} 18. Be3 {[%emt 0:00:35]} O-O {[%emt 0:04:18]} 19. Qe2 {[%emt 0:01:59]} Qa5 {[%emt 0:05:47]} 20. a3 {[%emt 0:02:37]} Qf5 {[%emt 0:02:56]} 21. Rbd1 {[%emt 0:05:32]} Rfe8 {[%emt 0:01:28]} 22. Bc1 {[%emt 0:02:51]} Rd5 {[%emt 0:02:15]} 23. Rd3 {[%emt 0:01:23]} Red8 {[%emt 0:06:53]} 24. Rf3 {[%emt 0:00:10]} Qh7 {[%emt 0:02:17]} 25. Bf4 {[%emt 0:03:02]} c5 {[%emt 0:07:53]} 26. dxc5 {[%emt 0:01:17]} Rxc5 {[%emt 0:02:04]} 27. Be3 {[%emt 0:03:00]} Ra5 {[%emt 0:03:59]} 28. Rd1 {[%emt 0:00:41]} Rxd1+ {[%emt 0:02:14]} 29. Qxd1 {[%emt 0:00:23]} Rd5 {[%emt 0:00:04]} 30. Qb3 {[%emt 0:04:07]} b6 {[%emt 0:01:18]} 31. Qa4 {[%emt 0:00:46]} Rd8 {[%emt 0:05:49]} 32. Qxa7 {[%emt 0:00:43]} Qb1+ {[%emt 0:00:20]} 33. Kh2 {[%emt 0:00:50]} Qxb2 {[%emt 0:00:00]} 34. Qc7 {[%emt 0:02:17]} Qxc3 {[%emt 0:02:38]} 35. Qxc3 {[%emt 0:01:48]} Bxc3 {[%emt 0:00:11]} 36. Bxb6 {[%emt 0:00:02]} Be5+ {[%emt 0:01:43]} 37. g3 {[%emt 0:01:17]} Ra8 {[%emt 0:00:25]} 38. Rd3 {[%emt 0:01:41]} g6 {[%emt 0:02:44]} 39. Rd8+ {[%emt 0:00:04]} Rxd8 {[%emt 0:00:18]} 40. Bxd8 {[%emt 0:00:22]} Kf8 {[%emt 0:00:00]} 41. a4 {[%emt 0:31:04]} Ke8 {[%emt 0:30:00]} 42. Bb6 {[%emt 0:01:52]} Kd7 {[%emt 0:00:01]} 43. Kg2 {[%emt 0:03:31]} Bc7 {[%emt 0:02:49]} 44. Be3 {[%emt 0:00:25]} h5 {[%emt 0:00:00]} 45. Bd2 {[%emt 0:01:31]} Kc6 {[%emt 0:00:01]} 46. Kf3 {[%emt 0:02:32]} Kc5 {[%emt 0:00:00]} 47. Ke4 {[%emt 0:03:38]} f5+ {[%emt 0:00:00]} 48. Kd3 {[%emt 0:00:47]} e5 {[%emt 0:00:00]} 49. Kc2 {[%emt 0:00:39]} Kc4 {[%emt 0:00:01]} 50. f3 {[%emt 0:09:50]} e4 {[%emt 0:00:00]} 51. fxe4 {[%emt 0:00:16]} fxe4 {[%emt 0:00:01]} 52. g4 {[%emt 0:00:55]} hxg4 {[%emt 0:00:13]} 53. hxg4 {[%emt 0:01:12]} Bd6 {[%emt 0:00:56]} 54. a5 {[%emt 0:00:03]} Kb5 {[%emt 0:01:11]} 55. Kd1 {[%emt 0:02:36]} Bc5 {[%emt 0:00:08]} 56. Ke2 {[%emt 0:00:05]} Ka6 {[%emt 0:03:05]} 57. Be3 {[%emt 0:03:23]} Bb4 {[%emt 0:01:00]} 58. Bb6 {[%emt 0:00:00]} Bd6 {[%emt 0:05:56]} 59. Ke3 {[%emt 0:01:29]} g5 {[%emt 0:02:33]} 60. Kxe4 {[%emt 0:00:00]} Bf4 {[%emt 0:00:13]} 61. Kf5 {[%emt 0:01:37]} Bd2 {[%emt 0:00:08]} 62. Bd8 {[%emt 0:01:42]} Kb7 {[%emt 0:00:00]} 63. Ke4 {[%emt 0:05:23]} Ka6 {[%emt 0:00:45]} 64. Bb6 {[%emt 0:00:35]} Bf4 {[%emt 0:00:29]} 65. Be3 {[%emt 0:01:24]} Bc7 {[%emt 0:00:14]} 66. Bxg5 {[%emt 0:00:19]} Bxa5 {[%emt 0:00:00]} 67. Kd3 {[%emt 0:02:04]} Kb5 {[%emt 0:00:46]} 68. Bf6 {[%emt 0:00:58]} Bb4 {[%emt 0:00:36]} 69. g5 {[%emt 0:00:51]} Kc6 {[%emt 0:00:00]} 70. Ke4 {[%emt 0:00:29]} Kd7 {[%emt 0:00:00]} 71. Kf5 {[%emt 0:02:07]} Bf8 {[%emt 0:00:58]} 72. g6 {[%emt 0:01:12]} Bh6 {[%emt 0:00:55]} 73. Bh4 {[%emt 0:01:08]} Ke8 {[%emt 0:02:09]} 74. Bg5 {[%emt 0:03:40]} Bg7 {[%emt 0:00:44]} 75. Bf6 {[%emt 0:01:41]} Bh6 {[%emt 0:31:55]} 76. Bg5 {[%emt 0:00:00]} 1/2-1/2

[Event "Nordic Chess-ch 2019"]
[Site "Sarpsborg"]
[Date "2019.06.22"]
[Round "2.41"]
[White "Sather, Lars"]
[Black "Thorvlaksson, Baldvin"]
[Result "1-0"]
[ECO "A50"]
[WhiteElo "1730"]
[BlackElo "1523"]
[Annotator "NA"]
[PlyCount "63"]
[EventDate "2019.06.21"]
[EventType "swiss"]
[EventCountry "NOR"]
[SourceTitle "playchess.com"]
[Source "ChessBase"]
[SourceQuality "1"]
[TimeControl "40/5400+30:1800+30"]

1. d4 {[%emt 0:00:00]} Nf6 {[%emt 0:08:30]} 2. c4 {[%emt 0:00:00]} e6 {[%emt 0:00:08]} 3. Nc3 {[%emt 0:00:00]} d5 {[%emt 0:00:14]} 4. f3 {[%emt 0:00:39]} b6 {[%emt 0:05:26]} 5. cxd5 {[%emt 1:31:51]} Nxd5 {[%emt 0:00:38]} 6. e4 {[%emt 0:00:00]} Nxc3 {[%emt 0:00:41]} 7. bxc3 {[%emt 0:00:00]} Bb7 {[%emt 0:01:53]} 8. Be3 {[%emt 0:00:00]} Qh4+ {[%emt 0:03:21]} 9. Bf2 {[%emt 0:00:00]} Qh5 {[%emt 0:00:11]} 10. Ne2 {[%emt 0:00:00]} Nd7 {[%emt 0:05:05]} 11. Qa4 {[%emt 0:00:00]} Be7 {[%emt 0:14:46]} 12. Ng3 {[%emt 0:00:00]} Qa5 {[%emt 0:02:30]} 13. Qxa5 {[%emt 0:00:00]} bxa5 {[%emt 0:53:07]} 14. Rb1 {[%emt 0:04:30]} Nb6 {[%emt 0:00:00]} 15. Bd3 {[%emt 0:00:00]} O-O-O {[%emt 0:00:00]} 16. O-O {[%emt 0:00:00]} h5 {[%emt 0:00:00]} 17. Ne2 {[%emt 0:00:00]} e5 {[%emt 0:00:00]} 18. Rfd1 {[%emt 0:00:00]} exd4 {[%emt 0:00:00]} 19. cxd4 {[%emt 0:00:00]} Bb4 {[%emt 0:00:00]} 20. d5 {[%emt 0:00:00]} Nd7 {[%emt 0:00:00]} 21. Rbc1 {[%emt 0:00:00]} Kb8 {[%emt 0:00:00]} 22. Bb5 {[%emt 0:00:00]} a6 {[%emt 0:00:00]} 23. Bc6 {[%emt 0:00:00]} Nb6 {[%emt 0:00:00]} 24. Nd4 {[%emt 0:00:00]} g6 {[%emt 0:00:00]} 25. Bxb7 {[%emt 0:00:00]} Kxb7 {[%emt 0:00:00]} 26. Nc6 {[%emt 0:00:00]} Rde8 {[%emt 0:00:00]} 27. Rd3 {[%emt 0:00:00]} h4 {[%emt 0:00:00]} 28. a3 {[%emt 0:00:00]} Bd6 {[%emt 0:00:00]} 29. Nxa5+ {[%emt 0:00:00]} Ka8 {[%emt 0:00:00]} 30. Rc6 {[%emt 0:00:00]} Rb8 {[%emt 0:00:00]} 31. Rb3 {[%emt 0:00:00]} Nxd5 {[%emt 0:00:00]} 32. Rxa6# {[%emt 0:00:00]} 1-0

[Event "Nordic Chess-ch 2019"]
[Site "Sarpsborg"]
[Date "2019.06.22"]
[Round "2.42"]
[White "Larsen, Bjorn"]
[Black "Lilleng, Gunnar"]
[Result "1-0"]
[ECO "B01"]
[WhiteElo "1680"]
[BlackElo "1485"]
[Annotator "NA"]
[PlyCount "125"]
[EventDate "2019.06.21"]
[EventType "swiss"]
[EventCountry "NOR"]
[SourceTitle "playchess.com"]
[Source "ChessBase"]
[SourceQuality "1"]
[TimeControl "40/5400+30:1800+30"]

1. e4 {[%emt 0:00:00]} d5 {[%emt 0:03:12]} 2. exd5 {[%emt 0:00:15]} Qxd5 {[%emt 0:00:07]} 3. Nc3 {[%emt 0:00:08]} Qd8 {[%emt 0:00:13]} 4. d4 {[%emt 0:00:10]} Nf6 {[%emt 0:00:23]} 5. Nf3 {[%emt 0:00:11]} Bg4 {[%emt 0:00:20]} 6. h3 {[%emt 0:01:41]} Bh5 {[%emt 0:01:25]} 7. Be2 {[%emt 0:02:29]} e6 {[%emt 0:01:02]} 8. O-O {[%emt 0:00:21]} c6 {[%emt 0:00:18]} 9. a3 {[%emt 0:08:07]} Nbd7 {[%emt 0:01:04]} 10. b4 {[%emt 0:04:10]} a6 {[%emt 0:07:36]} 11. Ne5 {[%emt 0:23:08]} Bxe2 {[%emt 0:05:27]} 12. Qxe2 {[%emt 0:04:58]} Be7 {[%emt 0:02:28]} 13. Kh1 {[%emt 0:06:57]} Nb6 {[%emt 0:02:24]} 14. Nf3 {[%emt 0:06:10]} Nbd5 {[%emt 0:04:10]} 15. Nxd5 Nxd5 16. Qe4 {[%emt 0:02:02]} Nf6 {[%emt 0:04:48]} 17. Qe2 {[%emt 0:02:36]} Qc7 {[%emt 0:02:17]} 18. Ne5 {[%emt 0:03:14]} Rd8 {[%emt 0:06:39]} 19. c3 {[%emt 0:02:47]} Nd5 {[%emt 0:03:11]} 20. Bd2 {[%emt 0:01:28]} Nf6 {[%emt 0:06:38]} 21. f4 {[%emt 0:00:24]} g6 {[%emt 0:00:33]} 22. g4 {[%emt 0:01:45]} Qd6 {[%emt 0:02:58]} 23. Qf3 {[%emt 0:02:39]} Qd5 {[%emt 0:00:29]} 24. Rae1 {[%emt 0:00:35]} h5 {[%emt 0:03:23]} 25. g5 {[%emt 0:01:22]} Qxf3+ {[%emt 0:08:38]} 26. Rxf3 {[%emt 0:00:17]} Nd5 {[%emt 0:00:40]} 27. c4 {[%emt 0:04:49]} Nc7 {[%emt 0:04:07]} 28. Bc3 {[%emt 0:00:16]} O-O {[%emt 0:00:55]} 29. h4 {[%emt 0:02:12]} Ne8 {[%emt 0:08:24]} 30. f5 {[%emt 0:01:51]} gxf5 {[%emt 0:02:24]} 31. g6 {[%emt 0:00:38]} f6 {[%emt 0:03:48]} 32. Nf7 {[%emt 0:01:10]} Rd7 {[%emt 0:01:13]} 33. Rxe6 {[%emt 0:00:39]} Ng7 {[%emt 0:00:27]} 34. Re2 {[%emt 0:02:00]} Ra8 {[%emt 0:03:59]} 35. Nh6+ {[%emt 0:03:43]} Kf8 {[%emt 0:00:11]} 36. Nxf5 {[%emt 0:00:11]} Nxf5 {[%emt 0:00:37]} 37. Rxf5 {[%emt 0:00:10]} Kg7 {[%emt 0:00:03]} 38. Rg2 {[%emt 0:01:26]} Rh8 {[%emt 0:06:41]} 39. Kg1 {[%emt 0:00:02]} Bd8 {[%emt 0:00:14]} 40. Kf2 {[%emt 0:00:42]} Rd6 {[%emt 0:00:58]} 41. Kf3 {[%emt 0:32:24]} Re6 {[%emt 0:30:31]} 42. d5 {[%emt 0:01:18]} cxd5 {[%emt 0:00:31]} 43. Rxd5 {[%emt 0:00:28]} Re7 {[%emt 0:01:42]} 44. Rgd2 {[%emt 0:07:26]} Bb6 {[%emt 0:03:31]} 45. c5 {[%emt 0:02:34]} Bc7 {[%emt 0:01:01]} 46. Rd7 {[%emt 0:00:00]} Rhe8 {[%emt 0:00:00]} 47. Rxe7+ {[%emt 0:00:00]} Rxe7 {[%emt 0:00:00]} 48. Rg2 {[%emt 0:00:00]} Be5 {[%emt 0:00:00]} 49. Bxe5 {[%emt 0:00:00]} Rxe5 {[%emt 0:00:00]} 50. a4 {[%emt 0:00:00]} Re1 {[%emt 0:00:00]} 51. Re2 {[%emt 0:00:00]} Rh1 {[%emt 0:00:00]} 52. Re7+ {[%emt 0:00:00]} Kxg6 {[%emt 0:00:00]} 53. Rxb7 {[%emt 0:00:00]} Rxh4 {[%emt 0:00:00]} 54. c6 {[%emt 0:00:00]} Rc4 {[%emt 0:00:00]} 55. c7 {[%emt 0:00:00]} Rc3+ {[%emt 0:00:00]} 56. Ke2 {[%emt 0:00:00]} h4 {[%emt 0:00:00]} 57. Kd2 {[%emt 0:00:00]} Rc4 {[%emt 0:00:00]} 58. b5 {[%emt 0:00:00]} axb5 {[%emt 0:00:00]} 59. axb5 {[%emt 0:00:00]} h3 {[%emt 0:00:00]} 60. Ra7 {[%emt 0:00:00]} Kf5 {[%emt 0:00:00]} 61. b6 {[%emt 0:00:00]} h2 {[%emt 0:00:00]} 62. Ra1 {[%emt 0:00:00]} Ke6 {[%emt 0:00:00]} 63. b7 {[%emt 0:09:37]} 1-0

[Event "Nordic Chess-ch 2019"]
[Site "Sarpsborg"]
[Date "2019.06.22"]
[Round "3.2"]
[White "Vestby-Ellingsen, Mads"]
[Black "Westerberg, Jonathan"]
[Result "1/2-1/2"]
[ECO "B61"]
[WhiteElo "2345"]
[BlackElo "2545"]
[Annotator "ChessBase"]
[PlyCount "80"]
[EventDate "2019.06.21"]
[EventType "swiss"]
[EventCountry "NOR"]
[SourceTitle "playchess.com"]
[Source "ChessBase"]
[SourceQuality "1"]
[TimeControl "40/5400+30:1800+30"]

1. e4 {[%emt 0:00:00]} c5 {[%emt 0:01:17]} 2. Nf3 {[%emt 0:00:00]} d6 {[%emt 0:00:26]} 3. d4 {[%emt 0:03:15]} Nf6 {[%emt 0:00:51]} 4. Nc3 {[%emt 0:00:14]} cxd4 {[%emt 0:00:07]} 5. Nxd4 {[%emt 0:00:10]} Nc6 {[%emt 0:01:02]} 6. Bg5 {[%emt 0:04:45]} Bd7 {[%emt 0:02:20]} 7. Qd2 {[%emt 0:01:45]} Rc8 {[%emt 0:00:27]} 8. O-O-O {[%emt 0:06:21]} Nxd4 {[%emt 0:01:35]} 9. Qxd4 {[%emt 0:00:55]} Qa5 {[%emt 0:00:06]} 10. Bxf6 {[%emt 0:01:03]} gxf6 {[%emt 0:00:11]} 11. Kb1 {[%emt 0:01:13]} Qc5 {[%emt 0:07:21]} 12. Qd2 {[%emt 0:01:14]} e6 {[%emt 0:10:56]} 13. f4 {[%emt 0:11:55]} Bc6 {[%emt 0:08:49]} 14. Bd3 {[%emt 0:13:30]} Kd8 {[%emt 0:09:47]} 15. e5 {[%emt 0:17:16]} fxe5 {[%emt 0:03:29]} 16. fxe5 {[%emt 0:01:38]} Qxe5 {[%emt 0:01:11]} 17. Qf2 {[%emt 0:02:05]} a6 {[%emt 0:09:08]} 18. Qxf7 {[%emt 0:06:32]} Rc7 {[%emt 0:00:48]} 19. Qf2 {[%emt 0:00:14]} Bg7 {[%emt 0:06:38]} 20. Rhe1 {[%emt 0:10:19]} Qa5 {[%emt 0:01:56]} 21. Ne4 {[%emt 0:01:45]} Rd7 {[%emt 0:01:57]} 22. Qg3 {[%emt 0:08:45]} Qe5 {[%emt 0:07:38]} 23. Qxe5 {[%emt 0:02:24]} Bxe5 {[%emt 0:00:01]} 24. Ng5 {[%emt 0:00:37]} Bxg2 {[%emt 0:01:54]} 25. Nxe6+ {[%emt 0:00:21]} Kc8 {[%emt 0:00:22]} 26. Rd2 {[%emt 0:03:45]} Bh3 {[%emt 0:02:14]} 27. Bc4 {[%emt 0:00:19]} h6 {[%emt 0:10:20]} 28. Nc5 {[%emt 0:00:26]} Rc7 {[%emt 0:02:01]} 29. Be6+ {[%emt 0:00:52]} Bxe6 {[%emt 0:00:27]} 30. Nxe6 {[%emt 0:00:03]} Rf7 {[%emt 0:00:12]} 31. a3 {[%emt 0:00:49]} Rf6 {[%emt 0:01:25]} 32. Nd4 {[%emt 0:00:23]} Rhf8 {[%emt 0:00:01]} 33. Ree2 {[%emt 0:00:47]} Rf1+ {[%emt 0:00:29]} 34. Ka2 {[%emt 0:00:07]} Rh1 {[%emt 0:00:12]} 35. c4 {[%emt 0:01:10]} Rf4 {[%emt 0:00:33]} 36. Rxe5 {[%emt 0:00:30]} dxe5 {[%emt 0:03:33]} 37. Ne6 {[%emt 0:00:02]} b6 {[%emt 0:01:32]} 38. Nxf4 {[%emt 0:00:31]} exf4 {[%emt 0:00:02]} 39. Rf2 {[%emt 0:00:16]} Kc7 {[%emt 0:00:12]} 40. Rxf4 {[%emt 0:00:19]} Rxh2 {[%emt 0:00:04]} 1/2-1/2

[Event "Nordic Chess-ch 2019"]
[Site "Sarpsborg"]
[Date "2019.06.22"]
[Round "3.3"]
[White "Cederstam Barsk, Carl"]
[Black "Urkedal, Frode Olav Olsen"]
[Result "0-1"]
[ECO "D37"]
[WhiteElo "2334"]
[BlackElo "2525"]
[Annotator "ChessBase"]
[PlyCount "78"]
[EventDate "2019.06.21"]
[EventType "swiss"]
[EventCountry "NOR"]
[SourceTitle "playchess.com"]
[Source "ChessBase"]
[SourceQuality "1"]
[TimeControl "40/5400+30:1800+30"]

1. Nf3 {[%emt 0:00:10]} Nf6 {[%emt 0:00:00]} 2. c4 {[%emt 0:00:07]} e6 {[%emt 0:00:29]} 3. Nc3 {[%emt 0:00:51]} d5 {[%emt 0:10:37]} 4. d4 {[%emt 0:00:34]} Be7 {[%emt 0:01:03]} 5. Bf4 {[%emt 0:00:55]} O-O {[%emt 0:00:11]} 6. a3 {[%emt 0:03:45]} dxc4 {[%emt 0:05:31]} 7. e3 {[%emt 0:14:46]} Nd5 {[%emt 0:06:25]} 8. Bg3 {[%emt 0:04:24]} Nxc3 {[%emt 0:02:59]} 9. bxc3 {[%emt 0:00:06]} b5 {[%emt 0:00:04]} 10. Qb1 {[%emt 0:02:38]} c6 {[%emt 0:04:18]} 11. Be2 {[%emt 0:11:40]} Nd7 {[%emt 0:04:46]} 12. h4 {[%emt 0:03:04]} Qa5 {[%emt 0:07:01]} 13. Qc2 {[%emt 0:10:06]} Nb6 {[%emt 0:17:31]} 14. O-O {[%emt 0:15:57]} Na4 {[%emt 0:01:17]} 15. Rfc1 {[%emt 0:02:53]} Bb7 {[%emt 0:00:42]} 16. Ng5 {[%emt 0:04:08]} g6 {[%emt 0:07:52]} 17. Bf3 {[%emt 0:02:01]} Qd8 {[%emt 0:00:10]} 18. Bf4 {[%emt 0:02:06]} Nb6 {[%emt 0:03:04]} 19. e4 {[%emt 0:02:51]} c5 {[%emt 0:05:56]} 20. Rd1 {[%emt 0:01:50]} cxd4 {[%emt 0:00:41]} 21. Rxd4 {[%emt 0:01:18]} Qe8 {[%emt 0:00:08]} 22. e5 {[%emt 0:01:04]} Nd5 {[%emt 0:01:37]} 23. Bd2 {[%emt 0:02:32]} Bc5 {[%emt 0:03:07]} 24. Rg4 {[%emt 0:01:03]} f5 {[%emt 0:00:04]} 25. Rg3 {[%emt 0:02:34]} Qe7 {[%emt 0:00:06]} 26. h5 {[%emt 0:02:24]} f4 {[%emt 0:00:23]} 27. Rg4 {[%emt 0:00:02]} gxh5 {[%emt 0:00:12]} 28. Bxd5 {[%emt 0:07:13]} hxg4 {[%emt 0:05:15]} 29. Bxb7 {[%emt 0:00:01]} Qxg5 {[%emt 0:01:23]} 30. Bxa8 {[%emt 0:00:16]} Rxa8 {[%emt 0:00:48]} 31. Qe4 {[%emt 0:00:19]} Rf8 {[%emt 0:00:06]} 32. Qc6 {[%emt 0:00:41]} Qxe5 {[%emt 0:00:30]} 33. Re1 {[%emt 0:00:42]} Qd5 {[%emt 0:00:07]} 34. Rxe6 {[%emt 0:01:00]} Qxc6 {[%emt 0:04:29]} 35. Rxc6 {[%emt 0:00:01]} Bb6 {[%emt 0:01:47]} 36. a4 {[%emt 0:00:25]} g3 {[%emt 0:00:31]} 37. Be1 {[%emt 0:01:17]} Re8 {[%emt 0:00:04]} 38. Kf1 {[%emt 0:00:06]} f3 {[%emt 0:00:03]} 39. gxf3 {[%emt 0:00:41]} Rxe1+ {[%emt 0:00:07]} 0-1

[Event "Nordic Chess-ch 2019"]
[Site "Sarpsborg"]
[Date "2019.06.22"]
[Round "3.4"]
[White "Notkevich, Benjamin Arvola"]
[Black "Tryggestad, Andreas Garberg"]
[Result "1-0"]
[ECO "A34"]
[WhiteElo "2485"]
[BlackElo "2324"]
[Annotator "ChessBase"]
[PlyCount "91"]
[EventDate "2019.06.21"]
[EventType "swiss"]
[EventCountry "NOR"]
[SourceTitle "playchess.com"]
[Source "ChessBase"]
[SourceQuality "1"]
[TimeControl "40/5400+30:1800+30"]

1. c4 {[%emt 0:00:00]} Nf6 {[%emt 0:00:00]} 2. Nf3 {[%emt 0:00:00]} c5 {[%emt 0:00:00]} 3. Nc3 {[%emt 0:00:00]} d5 {[%emt 0:00:00]} 4. cxd5 {[%emt 0:00:00]} Nxd5 {[%emt 0:00:00]} 5. e3 {[%emt 0:00:00]} Nc6 {[%emt 0:00:07]} 6. Bb5 {[%emt 0:00:02]} e6 {[%emt 0:01:39]} 7. O-O {[%emt 0:04:46]} Be7 {[%emt 0:01:29]} 8. e4 {[%emt 0:05:36]} Nxc3 {[%emt 0:02:32]} 9. bxc3 {[%emt 0:00:11]} O-O {[%emt 0:00:23]} 10. a4 {[%emt 0:03:50]} Bd7 {[%emt 0:01:04]} 11. d4 {[%emt 0:05:48]} cxd4 {[%emt 0:16:54]} 12. cxd4 {[%emt 0:01:06]} Nb4 {[%emt 0:00:44]} 13. Ne5 {[%emt 0:08:41]} Bxb5 {[%emt 0:02:33]} 14. axb5 {[%emt 0:00:05]} a5 {[%emt 0:00:14]} 15. bxa6 {[%emt 0:00:39]} bxa6 {[%emt 0:00:30]} 16. Be3 {[%emt 0:03:42]} Qc7 {[%emt 0:11:09]} 17. Qg4 {[%emt 0:04:32]} Rfc8 {[%emt 0:03:03]} 18. h4 {[%emt 0:07:43]} Nc2 {[%emt 0:08:09]} 19. Rad1 {[%emt 0:16:14]} Bd6 {[%emt 0:06:09]} 20. Nf3 {[%emt 0:06:48]} a5 {[%emt 0:10:41]} 21. Bg5 {[%emt 0:09:50]} Be7 {[%emt 0:04:08]} 22. Bf4 {[%emt 0:01:19]} Qb6 {[%emt 0:05:12]} 23. h5 {[%emt 0:04:50]} a4 {[%emt 0:01:19]} 24. Be5 {[%emt 0:12:25]} f6 {[%emt 0:00:18]} 25. h6 {[%emt 0:00:05]} g6 {[%emt 0:00:05]} 26. d5 {[%emt 0:01:19]} f5 {[%emt 0:18:23]} 27. Qf4 {[%emt 0:00:22]} Qb4 {[%emt 0:04:16]} 28. d6 {[%emt 0:00:21]} Bd8 {[%emt 0:00:17]} 29. Nd4 {[%emt 0:01:07]} Nxd4 {[%emt 0:01:21]} 30. Bxd4 {[%emt 0:00:56]} Ra5 {[%emt 0:01:06]} 31. exf5 {[%emt 0:00:44]} Rxf5 {[%emt 0:00:03]} 32. d7 {[%emt 0:01:35]} Rc7 {[%emt 0:01:08]} 33. Qe3 {[%emt 0:00:06]} Qe7 {[%emt 0:01:02]} 34. Bb6 {[%emt 0:01:15]} Rxd7 {[%emt 0:00:02]} 35. Rxd7 {[%emt 0:00:26]} Qxd7 {[%emt 0:00:01]} 36. Bxd8 {[%emt 0:00:02]} Qxd8 {[%emt 0:00:02]} 37. Qxe6+ {[%emt 0:00:16]} Kf8 {[%emt 0:00:38]} 38. Rc1 {[%emt 0:00:48]} Rf6 {[%emt 0:00:19]} 39. Qg4 {[%emt 0:00:14]} Kf7 {[%emt 0:01:43]} 40. Rd1 {[%emt 0:01:12]} Rd6 {[%emt 0:00:45]} 41. Qf4+ {[%emt 0:01:34]} Ke6 {[%emt 0:03:03]} 42. Re1+ {[%emt 0:00:08]} Kd7 {[%emt 0:01:49]} 43. Qxa4+ {[%emt 0:00:49]} Kc7 {[%emt 0:00:30]} 44. Qa7+ {[%emt 0:04:03]} Kc6 {[%emt 0:00:14]} 45. Rc1+ {[%emt 0:00:05]} Kd5 {[%emt 0:00:04]} 46. Qe3 {[%emt 0:02:58]} 1-0

[Event "Nordic Chess-ch 2019"]
[Site "Sarpsborg"]
[Date "2019.06.22"]
[Round "3.5"]
[White "Thorn, Eric"]
[Black "Getz, Nicolai"]
[Result "0-1"]
[ECO "A80"]
[WhiteElo "2230"]
[BlackElo "2380"]
[Annotator "ChessBase"]
[PlyCount "120"]
[EventDate "2019.06.21"]
[EventType "swiss"]
[EventCountry "NOR"]
[SourceTitle "playchess.com"]
[Source "ChessBase"]
[SourceQuality "1"]
[TimeControl "40/5400+30:1800+30"]

1. d4 {[%emt 0:00:00]} f5 {[%emt 0:00:00]} 2. Nf3 {[%emt 0:01:54]} Nf6 {[%emt 0:00:07]} 3. Bg5 {[%emt 0:03:59]} Ne4 {[%emt 0:03:15]} 4. h4 {[%emt 0:00:14]} c5 {[%emt 0:03:57]} 5. e3 {[%emt 0:06:46]} Qb6 {[%emt 0:05:53]} 6. Nbd2 {[%emt 0:04:14]} Qxb2 {[%emt 0:04:27]} 7. Nxe4 {[%emt 0:00:29]} fxe4 {[%emt 0:00:06]} 8. Nd2 {[%emt 0:00:05]} cxd4 {[%emt 0:03:48]} 9. Bc4 {[%emt 0:02:06]} e6 {[%emt 0:02:46]} 10. Rb1 {[%emt 0:11:04]} Qc3 {[%emt 0:01:20]} 11. Rb3 {[%emt 0:10:18]} Qa5 {[%emt 0:00:05]} 12. O-O {[%emt 0:02:04]} d5 {[%emt 0:01:28]} 13. Bb5+ {[%emt 0:05:44]} Nc6 {[%emt 0:00:01]} 14. f3 {[%emt 0:20:38]} Bb4 {[%emt 0:00:02]} 15. fxe4 {[%emt 0:07:22]} Qxb5 {[%emt 0:00:17]} 16. Qh5+ {[%emt 0:01:35]} g6 {[%emt 0:00:07]} 17. Qf3 {[%emt 0:00:04]} Rf8 {[%emt 0:00:59]} 18. Qxf8+ {[%emt 0:00:48]} Bxf8 {[%emt 0:00:04]} 19. Rxb5 {[%emt 0:00:05]} dxe3 {[%emt 0:06:57]} 20. Bxe3 {[%emt 0:03:49]} d4 {[%emt 0:00:06]} 21. Bf2 {[%emt 0:02:31]} b6 {[%emt 0:01:18]} 22. Rb3 {[%emt 0:03:33]} e5 {[%emt 0:00:28]} 23. a3 {[%emt 0:01:36]} Be6 {[%emt 0:00:40]} 24. Rd3 {[%emt 0:03:08]} Bh6 {[%emt 0:01:07]} 25. c3 {[%emt 0:04:29]} dxc3 {[%emt 0:31:16]} 26. Rxc3 {[%emt 0:00:06]} Nd4 {[%emt 0:00:04]} 27. Rd3 {[%emt 0:00:51]} Rd8 {[%emt 0:01:15]} 28. Kh1 {[%emt 0:00:39]} Bc8 {[%emt 0:11:38]} 29. Be3 {[%emt 0:01:29]} Ba6 {[%emt 0:01:30]} 30. Bxh6 {[%emt 0:00:29]} Bxd3 {[%emt 0:00:06]} 31. Rf8+ {[%emt 0:02:02]} Ke7 {[%emt 0:00:44]} 32. Rxd8 {[%emt 0:01:11]} Kxd8 {[%emt 0:00:04]} 33. Bg7 {[%emt 0:00:05]} Nc6 {[%emt 0:11:40]} 34. Kg1 {[%emt 0:00:10]} Ke7 {[%emt 0:00:25]} 35. Kf2 {[%emt 0:00:20]} Kf7 {[%emt 0:01:36]} 36. Bh8 {[%emt 0:00:27]} h6 {[%emt 0:02:10]} 37. Ke3 {[%emt 0:00:26]} Bc2 {[%emt 0:01:59]} 38. Nf3 {[%emt 0:00:37]} Ke6 {[%emt 0:00:22]} 39. Bxe5 {[%emt 0:00:56]} Nxe5 {[%emt 0:00:39]} 40. Nd4+ {[%emt 0:00:05]} Kd6 {[%emt 0:02:04]} 41. Nxc2 {[%emt 0:30:05]} b5 {[%emt 0:32:59]} 42. Kd4 {[%emt 0:00:00]} Nc6+ {[%emt 0:00:00]} 43. Kd3 {[%emt 0:00:00]} a5 {[%emt 0:00:00]} 44. Ne3 {[%emt 0:00:00]} h5 {[%emt 0:00:00]} 45. Kc3 {[%emt 0:02:39]} Ke5 {[%emt 0:00:00]} 46. Kd3 {[%emt 0:01:00]} Kf4 {[%emt 0:00:00]} 47. Nf1 {[%emt 0:00:43]} Kg4 {[%emt 0:00:00]} 48. Ke3 {[%emt 0:00:30]} b4 {[%emt 0:00:00]} 49. axb4 {[%emt 0:00:33]} axb4 {[%emt 0:00:00]} 50. Kd3 {[%emt 0:00:29]} Kf4 {[%emt 0:00:00]} 51. Nd2 {[%emt 0:00:27]} Ne5+ {[%emt 0:00:00]} 52. Kd4 {[%emt 0:00:22]} Ng4 {[%emt 0:00:00]} 53. Kd5 {[%emt 0:00:42]} Ne3+ {[%emt 0:00:00]} 54. Ke6 {[%emt 0:00:28]} Nxg2 {[%emt 0:00:00]} 55. Kf6 {[%emt 0:00:32]} Nxh4 {[%emt 0:00:00]} 56. e5 {[%emt 0:00:19]} Nf5 {[%emt 0:00:41]} 57. e6 {[%emt 0:00:38]} h4 {[%emt 0:00:08]} 58. Nb3 {[%emt 0:00:34]} h3 {[%emt 0:00:07]} 59. Nd4 {[%emt 0:00:29]} h2 {[%emt 0:01:12]} 60. Nxf5 {[%emt 0:00:30]} h1=Q {[%emt 0:00:22]} 0-1